[Event "Titled Tuesday Blitz July 11 Early 2023"]
[White "Korelskiy, Egor"]
[Black "Vaglio Munoz, Jaime"]
[WhiteFideId "34329064"]
[BlackFideId "6500145"]
[WhiteElo "2505"]
[BlackElo "2294"]
[Result "1-0"]
[Round "2"]
[TimeControl "180+2"]
[Date "2023.07.11"]
[WhiteClock "0:00:14"]
[BlackClock "0:00:42"]
[Board "175"]

1. e4 {[%clk 0:02:56]}  c5 {[%clk 0:02:57]} 2. Nf3 {[%clk 0:02:56]}  Qa5 {[%clk 0:02:57]} 3. Nc3 {[%clk 0:02:50]}  a6 {[%clk 0:02:56]} 4. d4 {[%clk 0:02:47]}  b5 {[%clk 0:02:56]} 5. dxc5 {[%clk 0:02:44]}  e6 {[%clk 0:02:55]} 6. Bd2 {[%clk 0:02:42]}  b4 {[%clk 0:02:56]} 7. Ne2 {[%clk 0:02:39]}  Bxc5 {[%clk 0:02:56]} 8. Ned4 {[%clk 0:02:37]}  Qb6 {[%clk 0:02:56]} 9. Be3 {[%clk 0:02:30]}  Nc6 {[%clk 0:02:55]} 10. Qd2 {[%clk 0:02:20]}  Nf6 {[%clk 0:02:54]} 11. Nxc6 {[%clk 0:02:07]}  Bxe3 {[%clk 0:02:52]} 12. fxe3 {[%clk 0:02:02]}  dxc6 {[%clk 0:02:43]} 13. e5 {[%clk 0:01:46]}  Nd5 {[%clk 0:02:40]} 14. e4 {[%clk 0:01:43]}  Ne7 {[%clk 0:02:20]} 15. Bd3 {[%clk 0:01:39]}  c5 {[%clk 0:02:19]} 16. O-O-O {[%clk 0:01:35]}  Bb7 {[%clk 0:02:18]} 17. Rdf1 {[%clk 0:01:34]}  Rd8 {[%clk 0:02:18]} 18. Ng5 {[%clk 0:01:33]}  O-O {[%clk 0:02:09]} 19. Qf2 {[%clk 0:01:31]}  Ng6 {[%clk 0:01:59]} 20. Qg3 {[%clk 0:01:24]}  c4 {[%clk 0:01:52]} 21. Bxc4 {[%clk 0:01:15]}  Qd4 {[%clk 0:01:52]} 22. Bd3 {[%clk 0:00:48]}  Qxe5 {[%clk 0:01:48]} 23. Qg4 {[%clk 0:00:34]}  h6 {[%clk 0:01:36]} 24. Nxf7 {[%clk 0:00:28]}  Rxf7 {[%clk 0:01:31]} 25. Rxf7 {[%clk 0:00:25]}  Kxf7 {[%clk 0:01:29]} 26. Rf1+ {[%clk 0:00:25]}  Ke7 {[%clk 0:01:22]} 27. Qxg6 {[%clk 0:00:23]}  Qg5+ {[%clk 0:01:17]} 28. Qxg5+ {[%clk 0:00:23]}  hxg5 {[%clk 0:01:18]} 29. h3 {[%clk 0:00:23]}  Rd4 {[%clk 0:01:17]} 30. Re1 {[%clk 0:00:22]}  e5 {[%clk 0:01:16]} 31. Kd2 {[%clk 0:00:20]}  a5 {[%clk 0:01:16]} 32. Ke3 {[%clk 0:00:17]}  a4 {[%clk 0:01:13]} 33. a3 {[%clk 0:00:15]}  bxa3 {[%clk 0:01:12]} 34. bxa3 {[%clk 0:00:15]}  Kd6 {[%clk 0:01:12]} 35. Rb1 {[%clk 0:00:15]}  Bc6 {[%clk 0:01:12]} 36. Rb8 {[%clk 0:00:14]}  Kc7 {[%clk 0:01:09]} 37. Rg8 {[%clk 0:00:12]}  Rd7 {[%clk 0:01:08]} 38. g4 {[%clk 0:00:07]}  Kd6 {[%clk 0:01:08]} 39. Rf8 {[%clk 0:00:07]}  Kc5 {[%clk 0:01:07]} 40. Rf5 {[%clk 0:00:07]}  Re7 {[%clk 0:01:06]} 41. Rxg5 {[%clk 0:00:07]}  Bb5 {[%clk 0:01:05]} 42. Rg6 {[%clk 0:00:07]}  Bxd3 {[%clk 0:01:05]} 43. cxd3 {[%clk 0:00:08]}  Rb7 {[%clk 0:01:04]} 44. Re6 {[%clk 0:00:08]}  Rb3 {[%clk 0:01:02]} 45. Rxe5+ {[%clk 0:00:08]}  Kc6 {[%clk 0:01:03]} 46. Rg5 {[%clk 0:00:07]}  Rxa3 {[%clk 0:01:02]} 47. Rxg7 {[%clk 0:00:07]}  Ra1 {[%clk 0:01:03]} 48. Ra7 {[%clk 0:00:07]}  a3 {[%clk 0:01:02]} 49. h4 {[%clk 0:00:07]}  a2 {[%clk 0:01:03]} 50. Kd4 {[%clk 0:00:07]}  Kb6 {[%clk 0:01:00]} 51. Ra8 {[%clk 0:00:07]}  Kb7 {[%clk 0:01:00]} 52. Ra3 {[%clk 0:00:07]}  Kb6 {[%clk 0:00:59]} 53. h5 {[%clk 0:00:08]}  Kb5 {[%clk 0:00:59]} 54. h6 {[%clk 0:00:08]}  Kb4 {[%clk 0:00:59]} 55. Ra8 {[%clk 0:00:06]}  Kb3 {[%clk 0:00:59]} 56. g5 {[%clk 0:00:06]}  Rh1 {[%clk 0:00:59]} 57. e5 {[%clk 0:00:05]}  Rh4+ {[%clk 0:00:56]} 58. Kd5 {[%clk 0:00:05]}  Rh5 {[%clk 0:00:55]} 59. d4 {[%clk 0:00:05]}  Rxg5 {[%clk 0:00:55]} 60. h7 {[%clk 0:00:06]}  Rh5 {[%clk 0:00:55]} 61. Rb8+ {[%clk 0:00:06]}  Kc2 {[%clk 0:00:54]} 62. Ra8 {[%clk 0:00:06]}  Kb3 {[%clk 0:00:54]} 63. Rxa2 {[%clk 0:00:04]}  Kxa2 {[%clk 0:00:53]} 64. Kd6 {[%clk 0:00:05]}  Rxh7 {[%clk 0:00:53]} 65. e6 {[%clk 0:00:06]}  Kb3 {[%clk 0:00:52]} 66. e7 {[%clk 0:00:06]}  Rh8 {[%clk 0:00:51]} 67. Ke6 {[%clk 0:00:05]}  Kc4 {[%clk 0:00:51]} 68. d5 {[%clk 0:00:06]}  Rh6+ {[%clk 0:00:49]} 69. Kf5 {[%clk 0:00:06]}  Rh8 {[%clk 0:00:46]} 70. d6 {[%clk 0:00:06]}  Kd5 {[%clk 0:00:46]} 71. d7 {[%clk 0:00:06]}  Rh1 {[%clk 0:00:42]} 72. d8=Q+ {[%clk 0:00:06]}  Kc5 {[%clk 0:00:41]} 73. e8=Q {[%clk 0:00:07]}  Rf1+ {[%clk 0:00:40]} 74. Kg4 {[%clk 0:00:08]}  Rg1+ {[%clk 0:00:40]} 75. Kh3 {[%clk 0:00:08]}  Rb1 {[%clk 0:00:40]} 76. Kg2 {[%clk 0:00:09]}  Rb2+ {[%clk 0:00:40]} 77. Kf3 {[%clk 0:00:10]}  Rb3+ {[%clk 0:00:40]} 78. Ke4 {[%clk 0:00:11]}  Rb4+ {[%clk 0:00:40]} 79. Ke5 {[%clk 0:00:11]}  Rb5 {[%clk 0:00:40]} 80. Qc8+ {[%clk 0:00:12]}  Kb4+ {[%clk 0:00:40]} 81. Qxb5+ {[%clk 0:00:13]}  Kxb5 {[%clk 0:00:41]} 82. Kd5 {[%clk 0:00:14]}  Kb4 {[%clk 0:00:41]} 83. Qc4+ {[%clk 0:00:14]}  Ka5 {[%clk 0:00:41]} 84. Qb3 {[%clk 0:00:14]}  Ka6 {[%clk 0:00:41]} 85. Kc6 {[%clk 0:00:14]}  Ka7 {[%clk 0:00:42]} 86. Qb7# {[%clk 0:00:14]} 1-0


[Site "https://www.chess.com"]

[Event "Titled Tuesday Blitz July 11 Early 2023"]
[White "Frolyanov, Dmitry"]
[Black "Liu, Kelsey"]
[WhiteFideId "4151976"]
[BlackFideId "30944481"]
[WhiteElo "2504"]
[BlackElo "2266"]
[Result "1-0"]
[Round "2"]
[TimeControl "180+2"]
[Date "2023.07.11"]
[WhiteClock "0:00:18"]
[BlackClock "0:00:09"]
[Board "178"]

1. d4 {[%clk 0:03:00]}  Nf6 {[%clk 0:02:59]} 2. c4 {[%clk 0:03:00]}  c6 {[%clk 0:02:58]} 3. Nc3 {[%clk 0:02:58]}  d5 {[%clk 0:02:59]} 4. Nf3 {[%clk 0:02:59]}  Bf5 {[%clk 0:02:59]} 5. cxd5 {[%clk 0:02:54]}  cxd5 {[%clk 0:02:58]} 6. Bf4 {[%clk 0:02:42]}  Nc6 {[%clk 0:02:56]} 7. e3 {[%clk 0:02:42]}  e6 {[%clk 0:02:55]} 8. Bb5 {[%clk 0:02:42]}  Bd6 {[%clk 0:02:54]} 9. Ne5 {[%clk 0:02:31]}  Bxe5 {[%clk 0:02:54]} 10. Bxe5 {[%clk 0:02:28]}  Nd7 {[%clk 0:02:53]} 11. Bg3 {[%clk 0:02:24]}  O-O {[%clk 0:02:53]} 12. O-O {[%clk 0:02:23]}  a6 {[%clk 0:02:53]} 13. Bxc6 {[%clk 0:02:22]}  bxc6 {[%clk 0:02:53]} 14. Na4 {[%clk 0:02:22]}  Nf6 {[%clk 0:02:44]} 15. Rc1 {[%clk 0:02:19]}  Rc8 {[%clk 0:02:41]} 16. Nc5 {[%clk 0:02:13]}  Ne4 {[%clk 0:02:41]} 17. Nxe4 {[%clk 0:01:53]}  Bxe4 {[%clk 0:02:33]} 18. Rc3 {[%clk 0:01:49]}  Qa5 {[%clk 0:02:26]} 19. Ra3 {[%clk 0:01:30]}  Qb5 {[%clk 0:02:17]} 20. Qd2 {[%clk 0:01:19]}  Rfd8 {[%clk 0:02:01]} 21. f3 {[%clk 0:01:16]}  Bg6 {[%clk 0:02:00]} 22. Rc1 {[%clk 0:01:14]}  h6 {[%clk 0:01:41]} 23. Ra5 {[%clk 0:01:13]}  Qb6 {[%clk 0:01:39]} 24. Rac5 {[%clk 0:01:12]}  Rd7 {[%clk 0:01:38]} 25. b3 {[%clk 0:01:11]}  Rb7 {[%clk 0:01:30]} 26. Qc3 {[%clk 0:01:11]}  Ra7 {[%clk 0:00:59]} 27. Rxc6 {[%clk 0:00:59]}  Rxc6 {[%clk 0:00:59]} 28. Qxc6 {[%clk 0:00:59]}  Qxc6 {[%clk 0:00:59]} 29. Rxc6 {[%clk 0:01:00]}  Bb1 {[%clk 0:01:00]} 30. a3 {[%clk 0:00:57]}  a5 {[%clk 0:01:00]} 31. Bd6 {[%clk 0:00:51]}  Rb7 {[%clk 0:00:51]} 32. b4 {[%clk 0:00:50]}  axb4 {[%clk 0:00:51]} 33. axb4 {[%clk 0:00:49]}  Bd3 {[%clk 0:00:49]} 34. Rc3 {[%clk 0:00:48]}  Bb5 {[%clk 0:00:49]} 35. Ra3 {[%clk 0:00:47]}  Kh7 {[%clk 0:00:48]} 36. Bc5 {[%clk 0:00:47]}  Kg6 {[%clk 0:00:48]} 37. Kf2 {[%clk 0:00:47]}  Kf5 {[%clk 0:00:34]} 38. Ra5 {[%clk 0:00:46]}  f6 {[%clk 0:00:34]} 39. g4+ {[%clk 0:00:45]}  Kg6 {[%clk 0:00:34]} 40. h4 {[%clk 0:00:40]}  e5 {[%clk 0:00:34]} 41. h5+ {[%clk 0:00:39]}  Kf7 {[%clk 0:00:33]} 42. Ra8 {[%clk 0:00:37]}  exd4 {[%clk 0:00:31]} 43. Bxd4 {[%clk 0:00:37]}  Rc7 {[%clk 0:00:30]} 44. Bc5 {[%clk 0:00:36]}  Rb7 {[%clk 0:00:30]} 45. Kg3 {[%clk 0:00:34]}  g6 {[%clk 0:00:28]} 46. hxg6+ {[%clk 0:00:32]}  Kxg6 {[%clk 0:00:29]} 47. f4 {[%clk 0:00:31]}  h5 {[%clk 0:00:29]} 48. f5+ {[%clk 0:00:30]}  Kh6 {[%clk 0:00:27]} 49. Rh8+ {[%clk 0:00:24]}  Kg7 {[%clk 0:00:25]} 50. Rxh5 {[%clk 0:00:24]}  Be8 {[%clk 0:00:22]} 51. Rh2 {[%clk 0:00:22]}  Rb8 {[%clk 0:00:17]} 52. Ra2 {[%clk 0:00:21]}  Bc6 {[%clk 0:00:15]} 53. Ra7+ {[%clk 0:00:20]}  Kh6 {[%clk 0:00:15]} 54. Ra6 {[%clk 0:00:19]}  Rc8 {[%clk 0:00:13]} 55. Bd4 {[%clk 0:00:19]}  Kg7 {[%clk 0:00:12]} 56. g5 {[%clk 0:00:19]}  Kf7 {[%clk 0:00:09]} 57. Bxf6 {[%clk 0:00:18]} 1-0


[Site "https://www.chess.com"]

[Event "Titled Tuesday Blitz July 11 Early 2023"]
[White "Lehtosaari, Mauri"]
[Black "Kuchava, Ana"]
[WhiteFideId "501999"]
[BlackFideId "13605348"]
[WhiteElo "2504"]
[BlackElo "2262"]
[Result "1-0"]
[Round "2"]
[TimeControl "180+2"]
[Date "2023.07.11"]
[WhiteClock "0:00:54"]
[BlackClock "0:00:09"]
[Board "179"]

1. d4 {[%clk 0:03:00]}  d5 {[%clk 0:02:54]} 2. Nf3 {[%clk 0:03:00]}  Nf6 {[%clk 0:02:54]} 3. Bg5 {[%clk 0:03:01]}  Ne4 {[%clk 0:02:49]} 4. Bf4 {[%clk 0:03:01]}  c6 {[%clk 0:02:37]} 5. e3 {[%clk 0:02:42]}  Bf5 {[%clk 0:02:31]} 6. Nbd2 {[%clk 0:02:31]}  e6 {[%clk 0:02:25]} 7. c3 {[%clk 0:02:26]}  Be7 {[%clk 0:02:15]} 8. h3 {[%clk 0:02:12]}  Nd7 {[%clk 0:02:11]} 9. Qb3 {[%clk 0:02:10]}  Qb6 {[%clk 0:02:04]} 10. Be2 {[%clk 0:02:10]}  O-O {[%clk 0:01:59]} 11. O-O {[%clk 0:02:09]}  c5 {[%clk 0:01:54]} 12. Nxe4 {[%clk 0:02:03]}  Bxe4 {[%clk 0:01:45]} 13. Qb5 {[%clk 0:01:37]}  Qxb5 {[%clk 0:01:21]} 14. Bxb5 {[%clk 0:01:38]}  Nf6 {[%clk 0:01:21]} 15. Ne5 {[%clk 0:01:36]}  a6 {[%clk 0:01:18]} 16. Be2 {[%clk 0:01:34]}  b5 {[%clk 0:01:15]} 17. Bg5 {[%clk 0:01:35]}  Rac8 {[%clk 0:01:01]} 18. a4 {[%clk 0:01:23]}  c4 {[%clk 0:00:46]} 19. axb5 {[%clk 0:01:22]}  axb5 {[%clk 0:00:47]} 20. Ra7 {[%clk 0:01:22]}  Bd6 {[%clk 0:00:42]} 21. Bxf6 {[%clk 0:01:13]}  gxf6 {[%clk 0:00:42]} 22. Nd7 {[%clk 0:01:13]}  Rfd8 {[%clk 0:00:40]} 23. Nxf6+ {[%clk 0:01:13]}  Kg7 {[%clk 0:00:40]} 24. Nxe4 {[%clk 0:01:13]}  dxe4 {[%clk 0:00:41]} 25. Bg4 {[%clk 0:01:09]}  Kg6 {[%clk 0:00:36]} 26. Rfa1 {[%clk 0:01:08]}  f5 {[%clk 0:00:31]} 27. Be2 {[%clk 0:01:04]}  b4 {[%clk 0:00:30]} 28. R1a6 {[%clk 0:00:57]}  Bf8 {[%clk 0:00:21]} 29. Rxe6+ {[%clk 0:00:55]}  Kg5 {[%clk 0:00:09]} 30. g3 {[%clk 0:00:54]} 1-0


[Site "https://www.chess.com"]

[Event "Titled Tuesday Blitz July 11 Early 2023"]
[White "Manukian, Artak"]
[Black "Xavier_mompel"]
[WhiteFideId "13301373"]
[WhiteElo "2501"]
[BlackElo "2259"]
[Result "1-0"]
[Round "2"]
[TimeControl "180+2"]
[Date "2023.07.11"]
[WhiteClock "0:00:21"]
[BlackClock "0:00:00"]
[Board "181"]

1. e4 {[%clk 0:02:51]}  c5 {[%clk 0:02:59]} 2. Nf3 {[%clk 0:02:50]}  e6 {[%clk 0:02:59]} 3. c3 {[%clk 0:02:48]}  Nf6 {[%clk 0:02:57]} 4. e5 {[%clk 0:02:47]}  Nd5 {[%clk 0:02:57]} 5. d4 {[%clk 0:02:45]}  cxd4 {[%clk 0:02:58]} 6. cxd4 {[%clk 0:02:36]}  d6 {[%clk 0:02:58]} 7. Nc3 {[%clk 0:02:36]}  Nxc3 {[%clk 0:02:55]} 8. bxc3 {[%clk 0:02:34]}  Qc7 {[%clk 0:02:55]} 9. Bd2 {[%clk 0:02:34]}  Nd7 {[%clk 0:02:54]} 10. Bb5 {[%clk 0:02:31]}  a6 {[%clk 0:02:51]} 11. Bxd7+ {[%clk 0:02:27]}  Bxd7 {[%clk 0:02:52]} 12. O-O {[%clk 0:02:28]}  Bc6 {[%clk 0:02:50]} 13. Re1 {[%clk 0:02:23]}  Be7 {[%clk 0:02:45]} 14. Bg5 {[%clk 0:02:14]}  Bxg5 {[%clk 0:02:35]} 15. Nxg5 {[%clk 0:02:12]}  h6 {[%clk 0:02:32]} 16. Qh5 {[%clk 0:02:04]}  O-O {[%clk 0:02:27]} 17. Nh3 {[%clk 0:01:55]}  dxe5 {[%clk 0:02:15]} 18. dxe5 {[%clk 0:01:51]}  Rad8 {[%clk 0:02:10]} 19. Re3 {[%clk 0:01:47]}  Rd2 {[%clk 0:01:50]} 20. Rg3 {[%clk 0:01:42]}  Rfd8 {[%clk 0:01:42]} 21. Re1 {[%clk 0:01:25]}  g6 {[%clk 0:00:58]} 22. Nf4 {[%clk 0:01:13]}  Qb6 {[%clk 0:00:19]} 23. Rxg6+ {[%clk 0:01:01]}  fxg6 {[%clk 0:00:15]} 24. Qxg6+ {[%clk 0:01:02]}  Kh8 {[%clk 0:00:14]} 25. Qf6+ {[%clk 0:00:57]}  Kg8 {[%clk 0:00:10]} 26. Qxe6+ {[%clk 0:00:52]}  Kg7 {[%clk 0:00:09]} 27. Nh5+ {[%clk 0:00:46]}  Kf8 {[%clk 0:00:06]} 28. Qxh6+ {[%clk 0:00:42]}  Ke8 {[%clk 0:00:04]} 29. Nf6+ {[%clk 0:00:37]}  Ke7 {[%clk 0:00:04]} 30. Ne4 {[%clk 0:00:30]}  Bxe4 {[%clk 0:00:04]} 31. Qxb6 {[%clk 0:00:27]}  Rd1 {[%clk 0:00:03]} 32. Qb4+ {[%clk 0:00:21]}  Ke8 {[%clk 0:00:00]} 33. Qxe4 {[%clk 0:00:21]} 1-0


[Site "https://www.chess.com"]

[Event "Titled Tuesday Blitz July 11 Early 2023"]
[White "UgarteCesar"]
[Black "Keleberda, Tymur"]
[BlackFideId "14174294"]
[WhiteElo "2258"]
[BlackElo "2497"]
[Result "0-1"]
[Round "2"]
[TimeControl "180+2"]
[Date "2023.07.11"]
[WhiteClock "0:01:08"]
[BlackClock "0:01:56"]
[Board "182"]

1. d4 {[%clk 0:03:00]}  Nf6 {[%clk 0:02:56]} 2. Bf4 {[%clk 0:03:00]}  d6 {[%clk 0:02:53]} 3. e3 {[%clk 0:03:00]}  g6 {[%clk 0:02:53]} 4. Nf3 {[%clk 0:03:00]}  Bg7 {[%clk 0:02:53]} 5. h3 {[%clk 0:03:00]}  b6 {[%clk 0:02:54]} 6. Be2 {[%clk 0:03:00]}  Bb7 {[%clk 0:02:54]} 7. Nbd2 {[%clk 0:03:01]}  Nbd7 {[%clk 0:02:55]} 8. a4 {[%clk 0:02:59]}  O-O {[%clk 0:02:55]} 9. O-O {[%clk 0:02:59]}  Re8 {[%clk 0:02:55]} 10. Bh2 {[%clk 0:02:59]}  a6 {[%clk 0:02:53]} 11. c3 {[%clk 0:02:59]}  e5 {[%clk 0:02:53]} 12. dxe5 {[%clk 0:02:59]}  dxe5 {[%clk 0:02:52]} 13. Nc4 {[%clk 0:02:59]}  e4 {[%clk 0:02:53]} 14. Nd4 {[%clk 0:02:58]}  Rc8 {[%clk 0:02:49]} 15. Qb3 {[%clk 0:02:57]}  Nc5 {[%clk 0:02:47]} 16. Qc2 {[%clk 0:02:56]}  Qd5 {[%clk 0:02:45]} 17. Rfd1 {[%clk 0:02:50]}  Nd3 {[%clk 0:02:45]} 18. b3 {[%clk 0:02:40]}  c5 {[%clk 0:02:33]} 19. Nxb6 {[%clk 0:02:39]}  Qg5 {[%clk 0:02:28]} 20. Nxc8 {[%clk 0:02:36]}  Rxc8 {[%clk 0:02:27]} 21. f4 {[%clk 0:02:14]}  Qh4 {[%clk 0:02:07]} 22. Bxd3 {[%clk 0:01:51]}  exd3 {[%clk 0:02:06]} 23. Qf2 {[%clk 0:01:51]}  Qxf2+ {[%clk 0:02:05]} 24. Kxf2 {[%clk 0:01:51]}  Ne4+ {[%clk 0:02:04]} 25. Kg1 {[%clk 0:01:37]}  cxd4 {[%clk 0:02:02]} 26. cxd4 {[%clk 0:01:35]}  d2 {[%clk 0:02:01]} 27. Kf1 {[%clk 0:01:18]}  Bf8 {[%clk 0:02:00]} 28. Ke2 {[%clk 0:01:17]}  Bb4 {[%clk 0:01:59]} 29. Kd3 {[%clk 0:01:09]}  Nf2+ {[%clk 0:01:57]} 30. Ke2 {[%clk 0:01:10]}  Nxd1 {[%clk 0:01:57]} 31. Kxd1 {[%clk 0:01:09]}  Bxg2 {[%clk 0:01:57]} 32. h4 {[%clk 0:01:08]}  Bf3# {[%clk 0:01:56]} 0-1


[Site "https://www.chess.com"]

[Event "Titled Tuesday Blitz July 11 Early 2023"]
[White "Sala, Giulia"]
[Black "Michalczak, Thomas"]
[WhiteFideId "2840451"]
[BlackFideId "4622634"]
[WhiteElo "2254"]
[BlackElo "2493"]
[Result "0-1"]
[Round "2"]
[TimeControl "180+2"]
[Date "2023.07.11"]
[WhiteClock "0:00:00"]
[BlackClock "0:00:19"]
[Board "184"]

1. e3 {[%clk 0:02:58]}  d5 {[%clk 0:02:59]} 2. d4 {[%clk 0:02:47]}  Nf6 {[%clk 0:02:58]} 3. Bd3 {[%clk 0:02:47]}  c5 {[%clk 0:02:58]} 4. Nf3 {[%clk 0:02:47]}  Nbd7 {[%clk 0:02:55]} 5. c3 {[%clk 0:02:44]}  Qc7 {[%clk 0:02:56]} 6. O-O {[%clk 0:02:44]}  e5 {[%clk 0:02:56]} 7. Nxe5 {[%clk 0:02:43]}  Nxe5 {[%clk 0:02:57]} 8. dxe5 {[%clk 0:02:43]}  Qxe5 {[%clk 0:02:57]} 9. Bc2 {[%clk 0:02:27]}  Bd6 {[%clk 0:02:12]} 10. f4 {[%clk 0:02:16]}  Qe7 {[%clk 0:02:12]} 11. Nd2 {[%clk 0:02:00]}  O-O {[%clk 0:01:46]} 12. e4 {[%clk 0:01:45]}  dxe4 {[%clk 0:01:43]} 13. Nxe4 {[%clk 0:01:43]}  Nxe4 {[%clk 0:01:40]} 14. Bxe4 {[%clk 0:01:43]}  Rd8 {[%clk 0:01:16]} 15. Qf3 {[%clk 0:01:40]}  Rb8 {[%clk 0:00:58]} 16. Be3 {[%clk 0:01:22]}  Re8 {[%clk 0:00:56]} 17. Bxh7+ {[%clk 0:01:00]}  Kxh7 {[%clk 0:00:55]} 18. Qh5+ {[%clk 0:00:59]}  Kg8 {[%clk 0:00:56]} 19. Rf3 {[%clk 0:00:57]}  Qf6 {[%clk 0:00:42]} 20. Bxc5 {[%clk 0:00:50]}  Bxc5+ {[%clk 0:00:34]} 21. Qxc5 {[%clk 0:00:48]}  b6 {[%clk 0:00:32]} 22. Qc7 {[%clk 0:00:40]}  Bb7 {[%clk 0:00:22]} 23. Rff1 {[%clk 0:00:34]}  Qc6 {[%clk 0:00:22]} 24. Qxc6 {[%clk 0:00:31]}  Bxc6 {[%clk 0:00:23]} 25. Rad1 {[%clk 0:00:29]}  Rbd8 {[%clk 0:00:23]} 26. Kf2 {[%clk 0:00:27]}  Kf8 {[%clk 0:00:23]} 27. g3 {[%clk 0:00:26]}  Ke7 {[%clk 0:00:21]} 28. Rfe1+ {[%clk 0:00:24]}  Kf6 {[%clk 0:00:21]} 29. Rxd8 {[%clk 0:00:08]}  Rxd8 {[%clk 0:00:21]} 30. Re2 {[%clk 0:00:09]}  Bb5 {[%clk 0:00:20]} 31. Rc2 {[%clk 0:00:09]}  Rd3 {[%clk 0:00:20]} 32. c4 {[%clk 0:00:08]}  Bc6 {[%clk 0:00:20]} 33. b4 {[%clk 0:00:08]}  Rf3+ {[%clk 0:00:20]} 34. Ke2 {[%clk 0:00:07]}  Ra3 {[%clk 0:00:20]} 35. Kd2 {[%clk 0:00:06]}  Be4 {[%clk 0:00:21]} 36. Rb2 {[%clk 0:00:06]}  Rd3+ {[%clk 0:00:21]} 37. Ke2 {[%clk 0:00:05]}  Rc3 {[%clk 0:00:21]} 38. Rd2 {[%clk 0:00:03]}  Rxc4 {[%clk 0:00:19]} 39. Rd6+ {[%clk 0:00:00]}  Ke7 {[%clk 0:00:19]} 0-1


[Site "https://www.chess.com"]

[Event "Titled Tuesday Blitz July 11 Early 2023"]
[White "Magallanes, Rey Jomar"]
[Black "Kleiman, Jake"]
[WhiteFideId "5205948"]
[BlackFideId "2020041"]
[WhiteElo "2249"]
[BlackElo "2491"]
[Result "0-1"]
[Round "2"]
[TimeControl "180+2"]
[Date "2023.07.11"]
[WhiteClock "0:01:15"]
[BlackClock "0:00:58"]
[Board "185"]

1. e4 {[%clk 0:03:00]}  e5 {[%clk 0:02:51]} 2. Nf3 {[%clk 0:02:59]}  Nc6 {[%clk 0:02:50]} 3. Bc4 {[%clk 0:02:59]}  Bc5 {[%clk 0:02:48]} 4. d3 {[%clk 0:02:59]}  Nf6 {[%clk 0:02:47]} 5. c3 {[%clk 0:02:59]}  O-O {[%clk 0:02:45]} 6. a4 {[%clk 0:02:59]}  a6 {[%clk 0:02:42]} 7. b4 {[%clk 0:02:58]}  Ba7 {[%clk 0:02:41]} 8. O-O {[%clk 0:02:58]}  h6 {[%clk 0:02:39]} 9. Re1 {[%clk 0:02:58]}  Re8 {[%clk 0:02:38]} 10. Nbd2 {[%clk 0:02:57]}  d6 {[%clk 0:02:36]} 11. Nf1 {[%clk 0:02:54]}  Ne7 {[%clk 0:02:35]} 12. Qb3 {[%clk 0:02:52]}  Rf8 {[%clk 0:02:33]} 13. Be3 {[%clk 0:02:51]}  Ng6 {[%clk 0:02:33]} 14. Bxa7 {[%clk 0:02:50]}  Rxa7 {[%clk 0:02:34]} 15. d4 {[%clk 0:02:47]}  Nh5 {[%clk 0:02:26]} 16. dxe5 {[%clk 0:02:42]}  dxe5 {[%clk 0:02:25]} 17. Rad1 {[%clk 0:02:41]}  Qf6 {[%clk 0:02:26]} 18. Ne3 {[%clk 0:02:40]}  Nhf4 {[%clk 0:02:24]} 19. Nd5 {[%clk 0:02:37]}  Nxd5 {[%clk 0:02:24]} 20. exd5 {[%clk 0:02:35]}  Bg4 {[%clk 0:02:22]} 21. Be2 {[%clk 0:02:34]}  Nf4 {[%clk 0:02:20]} 22. Qc2 {[%clk 0:02:28]}  Raa8 {[%clk 0:02:11]} 23. Qe4 {[%clk 0:02:21]}  Rfe8 {[%clk 0:02:09]} 24. h3 {[%clk 0:02:15]}  Bh5 {[%clk 0:01:54]} 25. c4 {[%clk 0:02:13]}  a5 {[%clk 0:01:45]} 26. b5 {[%clk 0:02:08]}  b6 {[%clk 0:01:44]} 27. Rd2 {[%clk 0:02:02]}  Rad8 {[%clk 0:01:42]} 28. Bd1 {[%clk 0:01:52]}  Nxh3+ {[%clk 0:01:28]} 29. gxh3 {[%clk 0:01:52]}  Bxf3 {[%clk 0:01:28]} 30. Qxf3 {[%clk 0:01:52]}  Qg5+ {[%clk 0:01:27]} 31. Qg4 {[%clk 0:01:45]}  Qxd2 {[%clk 0:01:28]} 32. Qe4 {[%clk 0:01:42]}  f5 {[%clk 0:01:26]} 33. Qe3 {[%clk 0:01:39]}  Qxe3 {[%clk 0:01:24]} 34. Rxe3 {[%clk 0:01:40]}  e4 {[%clk 0:01:23]} 35. Bh5 {[%clk 0:01:39]}  Re7 {[%clk 0:01:17]} 36. Bg6 {[%clk 0:01:39]}  Rf8 {[%clk 0:01:15]} 37. f3 {[%clk 0:01:39]}  Rf6 {[%clk 0:01:13]} 38. Bh5 {[%clk 0:01:36]}  g6 {[%clk 0:01:13]} 39. fxe4 {[%clk 0:01:33]}  gxh5 {[%clk 0:01:10]} 40. e5 {[%clk 0:01:33]}  f4 {[%clk 0:01:09]} 41. Re4 {[%clk 0:01:31]}  Rf5 {[%clk 0:01:07]} 42. e6 {[%clk 0:01:31]}  f3 {[%clk 0:01:06]} 43. Kf2 {[%clk 0:01:31]}  Kf8 {[%clk 0:01:02]} 44. Rd4 {[%clk 0:01:28]}  Rg7 {[%clk 0:01:01]} 45. c5 {[%clk 0:01:25]}  bxc5 {[%clk 0:00:59]} 46. Rd3 {[%clk 0:01:21]}  Rg2+ {[%clk 0:00:59]} 47. Kf1 {[%clk 0:01:20]}  f2 {[%clk 0:00:59]} 48. b6 {[%clk 0:01:14]}  Rg1+ {[%clk 0:00:58]} 49. Ke2 {[%clk 0:01:15]}  f1=Q+ {[%clk 0:00:58]} 50. Kd2 {[%clk 0:01:15]}  Qc1+ {[%clk 0:00:59]} 51. Ke2 {[%clk 0:01:15]}  Re1# {[%clk 0:00:58]} 0-1


[Site "https://www.chess.com"]